fUST/lending_fUST_20240221
["ID","MTS","AMOUNT","RATE_DAILY","PERIOD"]
[314646170,1708499443711,-2378.25,0.00019769,2]
[314646173,1708499443720,-500.0,0.00019769,2]
[314646176,1708499443729,-500.0,0.00019769,2]
[314646178,1708499443740,-2616.22,0.00019769,2]
[314646181,1708499443748,-500.0,0.00019769,2]
[314646183,1708499443757,-2929.87,0.00019769,2]
[314646185,1708499443766,-500.0,0.00019769,2]
[314646187,1708499443775,-500.0,0.00019769,2]
[314646189,1708499443784,-1407.5,0.00019769,2]
[314646191,1708499443793,-500.0,0.00019769,2]
[314646193,1708499443803,-500.0,0.00019769,2]
[314646194,1708499443811,-3614.59,0.00019769,2]
[314646196,1708499443821,-500.0,0.00019769,2]
[314646198,1708499443830,-500.0,0.00019769,2]
[314646200,1708499443838,-928.82,0.00019769,2]
[314646202,1708499443848,-3833.81,0.00019769,2]
[314646204,1708499443857,-500.0,0.00019769,2]
[314646206,1708499443865,-617.58,0.00019769,2]
[314646208,1708499443874,-500.0,0.00019769,2]
[314646210,1708499443883,-319.70759572,0.00019769,2]
[314646212,1708499443892,-681.98,0.00019769,2]
[314646214,1708499443901,-500.0,0.00019769,2]
[314646216,1708499443910,-502.06,0.00019769,2]
[314646218,1708499443919,-500.0,0.00019769,2]
[314646219,1708499443929,-500.0,0.00019769,2]
[314646221,1708499443938,-500.0,0.00019769,2]
[314646223,1708499443947,-500.0,0.00019769,2]
[314646225,1708499443956,-381.16737767,0.00019769,2]
[314646228,1708499443967,-517.68,0.00019769,2]
[314646229,1708499443977,-500.0,0.00019769,2]
[314646231,1708499443986,-6946.52,0.00019769,2]
[314646233,1708499443995,-500.0,0.00019769,2]
[314646235,1708499444005,-772.27,0.00019769,2]
[314646237,1708499444014,-4713.52,0.00019769,2]
[314646240,1708499444025,-1001.44015609,0.00019769,2]
[314646242,1708499444033,-500.0,0.00019769,2]
[314646244,1708499444042,-375.62660645,0.00019769,2]
[314646245,1708499444052,-500.0,0.00019769,2]
[314646247,1708499444061,-500.0,0.00019769,2]
[314646249,1708499444070,-500.0,0.00019769,2]
[314646251,1708499444079,-596.37630933,0.00019769,2]
[314646253,1708499444089,-595.58,0.00019769,2]
[314646255,1708499444100,-500.0,0.00019769,2]
[314646257,1708499444109,-500.0,0.00019769,2]
[314646259,1708499444119,-1379.16,0.00019769,2]
[314646261,1708499444128,-500.0,0.00019769,2]
[314646263,1708499444137,-534.54,0.00019769,2]
[314646265,1708499444147,-500.0,0.00019769,2]
[314646267,1708499444156,-500.0,0.00019769,2]
[314646269,1708499444166,-500.0,0.00019769,2]
[314646271,1708499444175,-3246.93940933,0.0001977,2]
[314646273,1708499444184,-655.0,0.00019793,2]
[314646275,1708499444194,-153.0,0.000198,2]
[314646277,1708499444203,-407.4416141,0.000198,2]
[314646279,1708499444212,-200.4151623,0.000198,2]
[314646280,1708499444221,-5853.65789018,0.0001986,2]
[314646283,1708499444241,-1536.48462198,0.0001986,2]
[314646285,1708499444255,-5230.0,0.0001986,2]
[314646443,1708499446520,-500.0,0.00019495,2]
[314646445,1708499446531,-500.0,0.00019495,2]
[314646447,1708499446540,-500.0,0.00019495,2]
[314646449,1708499446549,-155.09926353,0.00019768,2]
[314646451,1708499446559,-500.0,0.00019769,2]
[314646453,1708499446568,-500.0,0.00019769,2]
[314646455,1708499446578,-500.0,0.00019769,2]
[314646457,1708499446587,-975996.59904784,0.0001986,2]
[314646459,1708499446596,-515.93,0.00019868,2]
[314646461,1708499446605,-500.0,0.00019868,2]
[314646463,1708499446615,-500.0,0.00019868,2]
[314646465,1708499446624,-1277.45,0.00019868,2]
[314646467,1708499446633,-500.0,0.00019868,2]
[314646469,1708499446643,-500.0,0.00019868,2]
[314646471,1708499446653,-500.0,0.00019868,2]
[314646473,1708499446662,-5002.32,0.00019868,2]
[314646475,1708499446671,-500.0,0.00019868,2]
[314646477,1708499446680,-500.0,0.00019868,2]
[314646479,1708499446690,-500.0,0.00019868,2]
[314646481,1708499446698,-692.21,0.00019868,2]
[314646483,1708499446707,-1000.0,0.00019868,2]
[314646484,1708499446717,-500.0,0.00019868,2]
[314646487,1708499446728,-500.0,0.00019868,2]
[314646488,1708499446737,-500.0,0.00019868,2]
[314646489,1708499446745,-1039.91,0.00019868,2]
[314646490,1708499446754,-655.0,0.00019868,2]
[314646491,1708499446763,-655.0,0.00019868,2]
[314646492,1708499446772,-18517.56,0.00019868,2]
[314646493,1708499446781,-500.0,0.00019868,2]
[314646494,1708499446790,-3585.63,0.00019868,2]
[314646495,1708499446798,-500.0,0.00019868,2]
[314646496,1708499446807,-500.0,0.00019868,2]
[314646497,1708499446816,-554.18861888,0.00019868,2]
[314646498,1708499446825,-5365.21,0.00019868,2]
[314646499,1708499446834,-295.01720244,0.00019868,2]
[314646500,1708499446843,-2587.83,0.00019868,2]
[314646501,1708499446851,-5723.91,0.00019868,2]
[314646502,1708499446862,-3693.4,0.00019868,2]
[314646503,1708499446871,-500.0,0.00019868,2]
[314646504,1708499446880,-500.0,0.00019868,2]
[314646506,1708499446889,-582.16,0.00019869,2]
[314646508,1708499446898,-500.0,0.00019869,2]
[314646510,1708499446908,-500.0,0.00019869,2]
[314646512,1708499446917,-500.0,0.00019869,2]
[314646514,1708499446927,-1155.87,0.00019869,2]
[314646515,1708499446936,-500.0,0.00019869,2]
[314646517,1708499446945,-303.2262008,0.00019869,2]
[314646787,1708499614074,19710.0802935,0.00018657,2]
[314646788,1708499751570,197.83302944,0.000189,2]
[314646789,1708499931033,250.0,0.00018519,2]
[314646793,1708500473239,6339.45655987,0.0001888,2]
[314646839,1708500634019,-155.10236756,0.0001939,2]
[314646841,1708500634029,-168.45859294,0.00019391,2]
[314646843,1708500634038,-925.68716291,0.0001948,2]
[314646845,1708500634048,-584.02711978,0.00019482,3]
[314646848,1708500634076,-1438.10288022,0.00019482,3]
[314646851,1708500634085,-3644.26,0.00019482,3]
[314646853,1708500634094,-3036.89,0.00019482,3]
[314646856,1708500634104,-2530.74,0.00019482,3]
[314646858,1708500634113,-395.38,0.00019483,3]
[314646860,1708500634123,-25458.63,0.00019491,2]
[314646865,1708500634132,-500.0,0.00019491,2]
[314646867,1708500634142,-500.0,0.00019491,2]
[314646869,1708500634151,-982.97,0.00019491,2]
[314646871,1708500634160,-2376.65,0.00019491,2]
[314646873,1708500634170,-500.0,0.00019492,2]
[314646875,1708500634179,-500.0,0.00019492,2]
[314646877,1708500634188,-2112.08,0.00019492,2]
[314646879,1708500634199,-1129.25,0.00019492,2]
[314646881,1708500634208,-3960.27,0.00019492,2]
[314646883,1708500634217,-500.0,0.00019492,2]
[314646885,1708500634226,-2685.71,0.00019492,2]
[314646887,1708500634235,-500.0,0.00019492,2]
[314646889,1708500634244,-29288.17615136,0.00019492,2]
[314646912,1708500634443,-1578.92384864,0.00019492,2]
[314646914,1708500634453,-1397.63,0.00019492,2]
[314646916,1708500634462,-635.55,0.00019492,2]
[314646918,1708500634471,-1035.8,0.00019492,2]
[314646920,1708500634481,-1799.32,0.00019492,2]
[314646921,1708500634490,-500.0,0.00019492,2]
[314646924,1708500634499,-500.0,0.00019492,2]
[314646926,1708500634509,-861.48,0.00019492,2]
[314646927,1708500634519,-500.0,0.00019493,2]
[314646929,1708500634528,-500.0,0.00019493,2]
[314646931,1708500634537,-500.0,0.00019493,2]
[314646944,1708500634752,-500.0,0.00019493,2]
[314646945,1708500634762,-976.74,0.00019493,2]
[314646946,1708500634772,-500.0,0.00019493,2]
[314646947,1708500634781,-500.0,0.00019493,2]
[314646948,1708500634792,-500.0,0.00019493,2]
[314646949,1708500634801,-500.0,0.00019493,2]
[314646950,1708500634811,-1439.53644489,0.00019493,2]
[314646993,1708500639226,-484.76355511,0.00019493,2]
[314646994,1708500639235,-500.0,0.00019493,2]
[314646996,1708500639245,-500.0,0.00019493,2]
[314646998,1708500639255,-500.0,0.00019493,2]
[314646999,1708500639264,-500.0,0.00019493,2]
[314647001,1708500639274,-94.50778228,0.00019493,2]
[314647571,1708500645216,-194.9,0.00019483,3]
[314647572,1708500645225,-2108.95,0.00019483,3]
[314647573,1708500645235,-983.39,0.00019491,2]
[314647574,1708500645244,-405.49221772,0.00019493,2]
[314647575,1708500645254,-632.07,0.00019493,2]
[314647577,1708500645264,-500.0,0.00019493,2]
[314647578,1708500645274,-151.0,0.00019493,2]
[314647580,1708500645283,-259.19778228,0.00019493,2]
[314648976,1708501079674,15478.8441522,0.00018487,2]
[314648977,1708501165832,243.925332,0.00018487,2]
[314649000,1708501820846,151.61218331,0.0001194,2]
[314649024,1708501831747,-213.08781164,0.00019378,2]
[314649026,1708501831757,-5812.01826333,0.00019378,2]
[314649027,1708501831766,-907.10214405,0.00019379,2]
[314649029,1708501831775,-7032.49,0.0001947,3]
[314649031,1708501831785,-4336.36335002,0.0001947,3]
[314649095,1708501837669,-1032.92294385,0.0001947,3]
[314649097,1708501837681,-625.9,0.0001947,3]
[314649099,1708501837692,-763.28691389,0.0001947,3]
[314649104,1708501837732,-969.33014226,0.0001947,3]
[314649106,1708501837742,-649.68,0.00019472,3]
[314649108,1708501837751,-21348.11,0.00019479,2]
[314649109,1708501837762,-500.0,0.00019479,2]
[314649110,1708501837771,-2277.62,0.00019479,2]
[314649111,1708501837780,-55.25985773,0.00019479,2]
[314649257,1708501840936,-444.74014227,0.00019479,2]
[314649258,1708501840945,-1001.89,0.00019479,2]
[314649259,1708501840955,-500.0,0.0001948,2]
[314649260,1708501840965,-942.42,0.0001948,2]
[314649261,1708501840975,-500.0,0.0001948,2]
[314649262,1708501840987,-500.0,0.0001948,2]
[314649263,1708501840997,-936.04,0.0001948,2]
[314649265,1708501841007,-500.0,0.0001948,2]
[314649267,1708501841018,-500.0,0.0001948,2]
[314649269,1708501841027,-298.88714607,0.0001948,2]
[314649271,1708501841039,-201.11285393,0.0001948,2]
[314649273,1708501841048,-1082.2,0.0001948,2]
[314649275,1708501841058,-3795.26,0.0001948,2]
[314649277,1708501841067,-500.0,0.0001948,2]
[314649279,1708501841077,-500.0,0.0001948,2]
[314649281,1708501841086,-1844.12,0.0001948,2]
[314649283,1708501841095,-7812.18914612,0.0001948,2]
[314649285,1708501841106,-2935.45426387,0.0001948,2]
[314649685,1708501849062,-18847.98659001,0.0001948,2]
[314649686,1708501849072,-500.0,0.0001948,2]
[314649687,1708501849082,-1339.4,0.0001948,2]
[314649688,1708501849091,-532.93,0.0001948,2]
[314649689,1708501849101,-500.0,0.0001948,2]
[314649690,1708501849110,-500.0,0.0001948,2]
[314649691,1708501849119,-500.0,0.0001948,2]
[314649692,1708501849128,-992.64,0.0001948,2]
[314649693,1708501849137,-605.73,0.0001948,2]
[314649694,1708501849147,-1724.35,0.0001948,2]
[314649695,1708501849157,-408.99080361,0.0001948,2]
[314649696,1708501849166,-500.0,0.0001948,2]
[314649697,1708501849175,-500.0,0.0001948,2]
[314649699,1708501849184,-500.0,0.0001948,2]
[314649700,1708501849193,-825.59,0.0001948,2]
[314649702,1708501849202,-500.0,0.00019481,2]
[314649703,1708501849212,-500.0,0.00019481,2]
[314649705,1708501849221,-548.96078816,0.00019481,2]
[314649707,1708501849230,-500.0,0.00019481,2]
[314649709,1708501849239,-500.0,0.00019481,2]
[314649710,1708501849249,-675.37,0.00019481,2]
[314649712,1708501849258,-500.0,0.00019481,2]
[314649714,1708501849268,-500.0,0.00019481,2]
[314649716,1708501849278,-500.0,0.00019481,2]
[314649717,1708501849287,-2024.08,0.00019481,2]
[314649718,1708501849296,-500.0,0.00019481,2]
[314649719,1708501849305,-258.11466525,0.00019481,2]
[314649720,1708501849314,-500.0,0.00019481,2]
[314649722,1708501849324,-2573.81,0.00019481,2]
[314649724,1708501849333,-500.0,0.00019481,2]
[314649726,1708501849342,-500.0,0.00019481,2]
[314649728,1708501849351,-500.0,0.00019481,2]
[314649730,1708501849360,-500.0,0.00019481,2]
[314649732,1708501849369,-500.0,0.00019481,2]
[314649734,1708501849378,-500.0,0.00019481,2]
[314649736,1708501849387,-500.0,0.00019481,2]
[314649738,1708501849396,-230.95216171,0.00019482,2]
[314649740,1708501849405,-500.0,0.00019482,2]
[314649742,1708501849415,-500.0,0.00019482,2]
[314649744,1708501849423,-654.46,0.00019482,2]
[314649746,1708501849433,-500.0,0.00019482,2]
[314649748,1708501849442,-500.0,0.00019482,2]
[314649750,1708501849451,-2398.21,0.00019482,2]
[314649752,1708501849460,-841.28,0.00019482,2]
[314649754,1708501849469,-500.0,0.00019482,2]
[314649756,1708501849478,-11235.53,0.00019482,2]
[314649758,1708501849487,-16856.34,0.00019482,2]
[314649760,1708501849496,-500.0,0.00019482,2]
[314649762,1708501849505,-500.0,0.00019482,2]
[314649764,1708501849514,-3313.37,0.00019482,2]
[314649766,1708501849524,-4761.59,0.00019482,2]
[314649768,1708501849535,-500.0,0.00019482,2]
[314649770,1708501849544,-500.0,0.00019482,2]
[314649771,1708501849552,-500.0,0.00019482,2]
[314649772,1708501849561,-625.15,0.00019482,2]
[314649773,1708501849570,-851.42,0.00019482,2]
[314649774,1708501849579,-500.0,0.00019482,2]
[314649775,1708501849589,-3514.33,0.00019482,2]
[314649776,1708501849598,-500.0,0.00019482,2]
[314649777,1708501849607,-545.95,0.00019482,2]
[314649778,1708501849616,-1264.23,0.00019482,2]
[314649779,1708501849625,-500.0,0.00019482,2]
[314649780,1708501849634,-500.0,0.00019482,2]
[314649781,1708501849643,-6367.64,0.00019482,2]
[314649782,1708501849652,-707.92,0.00019482,2]
[314649783,1708501849662,-4320.73,0.00019482,2]
[314649784,1708501849671,-500.0,0.00019482,2]
[314649785,1708501849681,-169.36127377,0.00019482,2]
[314649786,1708501849690,-500.0,0.00019482,2]
[314649787,1708501849700,-500.0,0.00019482,2]
[314649788,1708501849709,-500.0,0.00019482,2]
[314649789,1708501849718,-500.0,0.00019482,2]
[314649790,1708501849730,-500.0,0.00019482,2]
[314649791,1708501849739,-115004.1477537,0.00019483,2]
[314649792,1708501849755,-23774.91494534,0.00019483,2]
[314649793,1708501849770,-2888.65396746,0.00019483,2]
[314649794,1708501849785,-21288.39108134,0.00019483,2]
[314649819,1708502021473,1000.0,0.00021,21]
[314649827,1708502057418,156.0715124,0.000176,2]
[314649830,1708502067758,1000.0,0.00021,21]
[314649835,1708502156844,644.4235289,0.000189,2]
[314649846,1708502758176,429.61568593,0.000189,2]
[314649864,1708503031911,-1607.68714996,0.00019271,2]
[314649865,1708503031921,-170.729374,0.00019371,2]
[314649866,1708503031931,-4572.44,0.00019467,3]
[314649867,1708503031940,-487.06,0.00019468,3]
[314649868,1708503031950,-500.0,0.00019477,2]
[314649869,1708503031959,-1097.76,0.00019477,2]
[314649870,1708503031969,-593.12468304,0.00019477,2]
[314649871,1708503031981,-3266.80531696,0.00019477,2]
[314649872,1708503031991,-28362.48,0.00019477,2]
[314649873,1708503032000,-23508.35,0.00019477,2]
[314649874,1708503032009,-586.86,0.00019477,2]
[314649875,1708503032019,-1283.59,0.00019477,2]
[314649876,1708503032028,-951.28,0.00019477,2]
[314649877,1708503032038,-500.0,0.00019477,2]
[314649878,1708503032047,-1652.5,0.00019477,2]
[314649879,1708503032058,-791.19,0.00019477,2]
[314649880,1708503032067,-500.0,0.00019477,2]
[314649881,1708503032077,-500.0,0.00019477,2]
[314649882,1708503032087,-500.0,0.00019477,2]
[314649883,1708503032097,-2182.72,0.00019477,2]
[314649884,1708503032106,-1939.74,0.00019477,2]
[314649885,1708503032116,-960.14,0.00019478,2]
[314649886,1708503032126,-500.0,0.00019478,2]
[314649887,1708503032135,-903.15,0.00019478,2]
[314649888,1708503032145,-500.0,0.00019478,2]
[314649889,1708503032155,-500.0,0.00019478,2]
[314649890,1708503032165,-500.0,0.00019478,2]
[314649891,1708503032176,-500.0,0.00019478,2]
[314649892,1708503032185,-500.0,0.00019478,2]
[314649893,1708503032195,-702.03,0.00019478,2]
[314649894,1708503032205,-500.0,0.00019478,2]
[314649895,1708503032215,-500.0,0.00019478,2]
[314649896,1708503032225,-500.0,0.00019478,2]
[314649897,1708503032235,-500.0,0.00019478,2]
[314649898,1708503032245,-500.0,0.00019478,2]
[314649899,1708503032255,-500.0,0.00019478,2]
[314649900,1708503032264,-1767.28,0.00019478,2]
[314649901,1708503032274,-647.22,0.00019478,2]
[314649902,1708503032284,-500.0,0.00019478,2]
[314649903,1708503032294,-500.0,0.00019478,2]
[314649904,1708503032303,-500.0,0.00019478,2]
[314649905,1708503032313,-500.0,0.00019478,2]
[314649906,1708503032323,-500.0,0.00019478,2]
[314649907,1708503032335,-580.49,0.00019478,2]
[314649908,1708503032345,-627.19,0.00019478,2]
[314649909,1708503032355,-500.0,0.00019478,2]
[314649910,1708503032366,-305.08549894,0.00019478,2]
[314649911,1708503032375,-500.0,0.00019478,2]
[314649912,1708503032385,-500.0,0.00019478,2]
[314649913,1708503032394,-500.0,0.00019478,2]
[314649914,1708503032404,-500.0,0.00019478,2]
[314649915,1708503032414,-151.0,0.00019478,2]
[314649916,1708503032423,-10767.38,0.00019478,2]
[314649917,1708503032433,-500.0,0.00019478,2]
[314649918,1708503032442,-1999.30498452,0.00019478,2]
[314649919,1708503032455,-11187.35972963,0.00019478,2]
[314649944,1708503038176,-920.14,0.00019477,2]
[314649946,1708503038186,-2967.32528585,0.00019478,2]
[314649948,1708503038196,-500.0,0.00019478,2]
[314649950,1708503038205,-1012.02,0.00019478,2]
[314649953,1708503038214,-4563.19,0.00019478,2]
[314649955,1708503038223,-500.0,0.00019478,2]
[314649957,1708503038233,-500.0,0.00019478,2]
[314649959,1708503038242,-2298.28,0.00019478,2]
[314649961,1708503038251,-500.0,0.00019478,2]
[314649963,1708503038261,-500.0,0.00019478,2]
[314649965,1708503038270,-500.0,0.00019478,2]
[314649967,1708503038279,-1290.21,0.00019478,2]
[314649969,1708503038289,-2466.56,0.00019478,2]
[314649971,1708503038298,-500.0,0.00019478,2]
[314649973,1708503038308,-500.0,0.00019478,2]
[314649975,1708503038317,-3367.89,0.00019478,2]
[314649977,1708503038326,-2180.07,0.00019478,2]
[314649979,1708503038337,-500.0,0.00019478,2]
[314649981,1708503038346,-500.0,0.00019478,2]
[314649982,1708503038355,-500.0,0.00019478,2]
[314649984,1708503038365,-815.94,0.00019478,2]
[314649986,1708503038374,-500.0,0.00019478,2]
[314649988,1708503038383,-500.0,0.00019478,2]
[314649990,1708503038393,-500.0,0.00019478,2]
[314649992,1708503038402,-500.0,0.00019478,2]
[314649994,1708503038412,-678.42,0.00019478,2]
[314649996,1708503038421,-500.0,0.00019478,2]
[314649997,1708503038431,-3175.31,0.00019478,2]
[314649999,1708503038440,-4140.7,0.00019478,2]
[314650001,1708503038450,-566.11,0.00019478,2]
[314650003,1708503038459,-500.0,0.00019478,2]
[314650005,1708503038467,-500.0,0.00019478,2]
[314650007,1708503038476,-500.0,0.00019478,2]
[314650009,1708503038485,-500.0,0.00019478,2]
[314650011,1708503038496,-2288.37,0.00019478,2]
[314650013,1708503038505,-523.2,0.00019478,2]
[314650015,1708503038514,-500.0,0.00019478,2]
[314650017,1708503038523,-599.1,0.00019478,2]
[314650019,1708503038531,-500.0,0.00019478,2]
[314650021,1708503038541,-500.0,0.00019478,2]
[314650023,1708503038549,-1211.55,0.00019478,2]
[314650025,1708503038558,-500.0,0.00019478,2]
[314650026,1708503038567,-500.0,0.00019478,2]
[314650028,1708503038576,-500.0,0.00019478,2]
[314650030,1708503038585,-500.0,0.00019478,2]
[314650032,1708503038596,-500.0,0.00019478,2]
[314650034,1708503038606,-500.0,0.00019478,2]
[314650037,1708503038615,-500.0,0.00019478,2]
[314650039,1708503038624,-500.0,0.00019478,2]
[314650040,1708503038633,-500.0,0.00019478,2]
[314650042,1708503038642,-500.0,0.00019478,2]
[314650044,1708503038651,-16974.43,0.00019478,2]
[314650046,1708503038660,-500.0,0.00019478,2]
[314650048,1708503038668,-500.0,0.00019478,2]
[314650050,1708503038677,-500.0,0.00019478,2]
[314650052,1708503038686,-533.65,0.00019478,2]
[314650054,1708503038696,-500.0,0.00019478,2]
[314650056,1708503038704,-500.0,0.00019478,2]
[314650058,1708503038713,-3286.83,0.00019478,2]
[314650060,1708503038722,-480.27563807,0.00019478,2]
[314650062,1708503038732,-500.0,0.00019478,2]
[314650064,1708503038741,-2208.36,0.00019478,2]
[314650066,1708503038751,-500.0,0.00019478,2]
[314650067,1708503038761,-500.0,0.00019478,2]
[314650069,1708503038770,-1170.99,0.00019478,2]
[314650071,1708503038779,-241.39870029,0.00019478,2]
[314650073,1708503038788,-1059.55,0.00019478,2]
[314650075,1708503038798,-500.0,0.00019479,2]
[314650077,1708503038806,-500.0,0.00019479,2]
[314650079,1708503038815,-500.0,0.00019479,2]
[314650080,1708503038824,-500.0,0.00019479,2]
[314650082,1708503038834,-4585.46,0.00019479,2]
[314650084,1708503038844,-500.0,0.00019479,2]
[314650086,1708503038853,-634.53,0.00019479,2]
[314650088,1708503038862,-1000.0,0.00019479,2]
[314650090,1708503038871,-500.0,0.00019479,2]
[314650091,1708503038879,-953.25,0.00019479,2]
[314650092,1708503038889,-500.0,0.00019479,2]
[314650093,1708503038898,-500.0,0.00019479,2]
[314650094,1708503038907,-500.0,0.00019479,2]
[314650095,1708503038916,-500.0,0.00019479,2]
[314650096,1708503038925,-500.0,0.00019479,2]
[314650097,1708503038935,-4918.11,0.00019479,2]
[314650098,1708503038944,-2372.18,0.00019479,2]
[314650099,1708503038953,-1652.60037583,0.00019479,2]
[314650479,1708503042911,-3810.37,0.00019473,3]
[314650481,1708503042920,-1429.63,0.00019479,2]
[314650646,1708503125914,10000.0,0.00021,21]
[314650650,1708503347585,-213.08781164,0.00019266,2]
[314650651,1708503347614,-1319.3118123,0.00019267,2]
[314650652,1708503347645,-431.91651792,0.00019368,2]
[314650653,1708503347673,-500.0,0.00019477,2]
[314650654,1708503347701,-500.0,0.00019477,2]
[314650655,1708503347730,-500.0,0.00019477,2]
[314650656,1708503347764,-3699.1,0.00019477,2]
[314650657,1708503347792,-500.0,0.00019477,2]
[314650658,1708503347822,-27180.71,0.00019477,2]
[314650659,1708503347852,-574.14,0.00019477,2]
[314650660,1708503347889,-500.0,0.00019477,2]
[314650661,1708503347923,-500.0,0.00019477,2]
[314650662,1708503347954,-562.41,0.00019477,2]
[314650663,1708503347991,-500.0,0.00019477,2]
[314650664,1708503348022,-1307.23,0.00019477,2]
[314650665,1708503348052,-911.64,0.00019477,2]
[314650666,1708503348081,-500.0,0.00019477,2]
[314650667,1708503348111,-620.26,0.00019477,2]
[314650668,1708503348145,-1583.64,0.00019477,2]
[314650669,1708503348174,-500.0,0.00019477,2]
[314650670,1708503348203,-500.0,0.00019477,2]
[314650671,1708503348233,-2116.35,0.00019477,2]
[314650672,1708503348264,-758.22,0.00019477,2]
[314650673,1708503348297,-500.0,0.00019477,2]
[314650674,1708503348327,-500.0,0.00019477,2]
[314650675,1708503348356,-1858.92,0.00019477,2]
[314650676,1708503348386,-10318.74,0.00019477,2]
[314650677,1708503348419,-500.0,0.00019477,2]
[314650678,1708503348449,-15480.91,0.00019477,2]
[314650679,1708503348478,-4373.06,0.00019477,2]
[314650680,1708503348508,-500.0,0.00019477,2]
[314650681,1708503348539,-601.05,0.00019477,2]
[314650682,1708503348567,-500.0,0.00019477,2]
[314650683,1708503348597,-2363.79,0.00019477,2]
[314650684,1708503348632,-500.0,0.00019477,2]
[314650685,1708503348661,-500.0,0.00019477,2]
[314650686,1708503348691,-500.0,0.00019477,2]
[314650687,1708503348721,-500.0,0.00019477,2]
[314650688,1708503348864,-3227.57,0.00019477,2]
[314650689,1708503348898,-3043.01,0.00019477,2]
[314650690,1708503348928,-781.95,0.00019477,2]
[314650691,1708503348959,-500.0,0.00019477,2]
[314650692,1708503348988,-500.0,0.00019478,2]
[314650693,1708503349018,-500.0,0.00019478,2]
[314650694,1708503349047,-500.0,0.00019478,2]
[314650695,1708503349075,-500.0,0.00019478,2]
[314650696,1708503349104,-500.0,0.00019478,2]
[314650697,1708503349132,-200.03015842,0.00019478,2]
[314650698,1708503349160,-500.0,0.00019478,2]
[314650699,1708503349190,-500.0,0.00019478,2]
[314650700,1708503349218,-608.09,0.00019478,2]
[314650701,1708503349247,-500.0,0.00019478,2]
[314650702,1708503349276,-1454.96,0.00019478,2]
[314650703,1708503349304,-629.55043623,0.00019478,2]
[314650704,1708503349333,-500.0,0.00019478,2]
[314650705,1708503349361,-618.62,0.00019478,2]
[314650706,1708503349394,-4394.4,0.00019478,2]
[314650707,1708503349425,-500.0,0.00019478,2]
[314650708,1708503349455,-500.0,0.00019478,2]
[314650709,1708503349484,-500.0,0.00019478,2]
[314650710,1708503349513,-500.0,0.00019478,2]
[314650711,1708503349545,-500.0,0.00019478,2]
[314650712,1708503349574,-612.17,0.00019478,2]
[314650713,1708503349603,-500.0,0.00019478,2]
[314650714,1708503349633,-1000.0,0.00019478,2]
[314650715,1708503349661,-500.0,0.00019478,2]
[314650716,1708503349689,-500.0,0.00019478,2]
[314650717,1708503349718,-569.28,0.00019478,2]
[314650718,1708503349746,-500.0,0.00019478,2]
[314650719,1708503349774,-650.15,0.00019478,2]
[314650720,1708503349802,-500.0,0.00019478,2]
[314650721,1708503349831,-3105.52,0.00019478,2]
[314650722,1708503349859,-553.63,0.00019478,2]
[314650723,1708503349887,-500.0,0.00019478,2]
[314650724,1708503349916,-500.0,0.00019478,2]